[Event "FIDE WCCC Open-12 2024"]
[Site "Montesilvano"]
[Date "2024.11.18"]
[Round "2.49"]
[White "Huang, Hao-Xuan"]
[Black "Le, Anh Tu"]
[Result "0-1"]
[ECO "B22"]
[WhiteElo "1516"]
[BlackElo "1812"]
[PlyCount "82"]
[EventDate "2024.11.18"]
[EventType "swiss"]
[EventCountry "ITA"]
[TimeControl "5400+30"]

1. e4 {[%emt 0:00:03]} c5 {[%emt 0:00:10]} 2. c3 {[%emt 0:00:25]} Nf6 {[%emt 0:00:10]} 3. e5 {[%emt 0:00:19]} Nd5 {[%emt 0:00:10]} 4. d4 {[%emt 0:00:57]} cxd4 {[%emt 0:00:13]} 5. cxd4 {[%emt 0:00:20]} Nc6 {[%emt 0:00:13]} 6. Bc4 {[%emt 0:02:24]} Nb6 {[%emt 0:00:55]} 7. Bb3 {[%emt 0:02:31]} d6 {[%emt 0:00:22]} 8. exd6 {[%emt 0:09:58]} e6 {[%emt 0:00:23]} 9. Nf3 {[%emt 0:02:03]} Qxd6 {[%emt 0:00:42]} 10. O-O {[%emt 0:01:51]} Be7 {[%emt 0:00:02]} 11. Nc3 {[%emt 0:01:37]} O-O {[%emt 0:00:04]} 12. Be3 {[%emt 0:02:09]} Rd8 {[%emt 0:00:18]} 13. Qe2 {[%emt 0:05:40]} Na5 {[%emt 0:01:54]} 14. Bc2 {[%emt 0:02:44]} Bd7 {[%emt 0:01:53]} 15. Ne5 {[%emt 0:02:22]} f5 {[%emt 0:01:47]} 16. Rfd1 {[%emt 0:05:36]} Bf6 {[%emt 0:03:44]} 17. f4 {[%emt 0:02:28]} Rac8 {[%emt 0:00:33]} 18. Rac1 {[%emt 0:02:56]} Nac4 {[%emt 0:01:19]} 19. Bb3 {[%emt 0:02:36]} Na5 {[%emt 0:02:04]} 20. Bc2 {[%emt 0:04:01]} a6 {[%emt 0:02:04]} 21. Qf3 {[%emt 0:04:16]} Nac4 {[%emt 0:04:37]} 22. Rb1 {[%emt 0:03:42]} Nxb2 {[%emt 0:02:24]} 23. Rxb2 {[%emt 0:00:57]} Rxc3 {[%emt 0:01:22]} 24. Qxb7 {[%emt 0:01:19]} Nd5 {[%emt 0:05:44]} 25. Bd2 {[%emt 0:02:30]} Rc7 {[%emt 0:00:59]} 26. Qb3 {[%emt 0:01:16]} Rdc8 {[%emt 0:00:36]} 27. Ba5 {[%emt 0:02:25]} Ra7 {[%emt 0:05:06]} 28. Qf3 {[%emt 0:04:37]} Bxe5 {[%emt 0:04:38]} 29. fxe5 {[%emt 0:00:46]} Qe7 {[%emt 0:00:12]} 30. Bxf5 {[%emt 0:02:25]} Rf8 {[%emt 0:00:10]} 31. Qb3 {[%emt 0:03:50]} Rxf5 {[%emt 0:00:33]} 32. Qb8+ {[%emt 0:00:30]} Be8 {[%emt 0:00:05]} 33. Bd8 {[%emt 0:02:19]} Qf7 {[%emt 0:00:33]} 34. Rdb1 {[%emt 0:03:58]} Ne3 {[%emt 0:00:26]} 35. h3 {[%emt 0:00:55]} Rf1+ {[%emt 0:03:08]} 36. Rxf1 {[%emt 0:00:17]} Qxf1+ {[%emt 0:00:09]} 37. Kh2 {[%emt 0:00:11]} Qf4+ {[%emt 0:00:33]} 38. Kg1 {[%emt 0:01:27]} Rf7 {[%emt 0:01:44]} 39. Ba5 {[%emt 0:02:16]} Rf8 {[%emt 0:00:35]} 40. Bb4 {[%emt 0:01:00]} Qxd4 {[%emt 0:00:18]} 41. Bxf8 {[%emt 0:00:52]} Ng4+ {[%emt 0:00:02]} 0-1

[Event "FIDE WCCC Open-12 2024"]
[Site "Montesilvano"]
[Date "2024.11.18"]
[Round "2.50"]
[White "Lee, Tsuen Jin Aiesec"]
[Black "Macia Tell, Dario"]
[Result "1-0"]
[ECO "B51"]
[WhiteElo "1806"]
[BlackElo "1520"]
[PlyCount "111"]
[EventDate "2024.11.18"]
[EventType "swiss"]
[EventCountry "ITA"]
[TimeControl "5400+30"]

1. e4 {[%emt 0:00:02]} c5 {[%emt 0:00:04]} 2. Nf3 {[%emt 0:00:05]} d6 {[%emt 0:00:05]} 3. Bb5+ {[%emt 0:00:03]} Nd7 {[%emt 0:00:15]} 4. c4 {[%emt 0:00:04]} a6 {[%emt 0:00:14]} 5. Ba4 {[%emt 0:00:03]} Ngf6 {[%emt 0:00:07]} 6. Nc3 {[%emt 0:00:03]} g6 {[%emt 0:00:11]} 7. d3 {[%emt 0:00:21]} Bg7 {[%emt 0:00:07]} 8. h3 {[%emt 0:00:04]} O-O {[%emt 0:00:13]} 9. Be3 {[%emt 0:00:04]} e6 {[%emt 0:02:10]} 10. O-O {[%emt 0:01:37]} Nb6 {[%emt 0:00:47]} 11. Bb3 {[%emt 0:00:06]} e5 {[%emt 0:01:49]} 12. a3 {[%emt 0:01:27]} Be6 {[%emt 0:01:09]} 13. Qd2 {[%emt 0:02:13]} Qd7 {[%emt 0:00:24]} 14. Bc2 {[%emt 0:00:44]} Qc7 {[%emt 0:02:41]} 15. b4 {[%emt 0:00:28]} Nbd7 {[%emt 0:00:08]} 16. Ng5 {[%emt 0:00:39]} a5 {[%emt 0:01:11]} 17. Nb5 {[%emt 0:00:51]} Qb6 {[%emt 0:04:26]} 18. bxa5 {[%emt 0:00:37]} Rxa5 {[%emt 0:00:28]} 19. Nxd6 {[%emt 0:01:15]} Rb8 {[%emt 0:02:50]} 20. Rfb1 {[%emt 0:04:43]} Qc7 {[%emt 0:00:11]} 21. Nb5 {[%emt 0:03:36]} Qd8 {[%emt 0:01:18]} 22. f4 {[%emt 0:02:34]} Ra6 {[%emt 0:06:51]} 23. Rf1 {[%emt 0:00:47]} exf4 {[%emt 0:00:22]} 24. Bxf4 {[%emt 0:00:13]} Rc8 {[%emt 0:00:55]} 25. Rab1 {[%emt 0:00:55]} Nf8 {[%emt 0:01:41]} 26. Qf2 {[%emt 0:02:13]} h6 {[%emt 0:00:50]} 27. Nxe6 {[%emt 0:01:15]} Nxe6 {[%emt 0:00:14]} 28. Be5 {[%emt 0:01:40]} Ng5 {[%emt 0:02:11]} 29. Bc3 {[%emt 1:16:18]} Qe7 {[%emt 0:02:01]} 30. e5 {[%emt 0:00:00]} Nd7 {[%emt 0:01:26]} 31. h4 {[%emt 0:00:00]} Nh7 {[%emt 0:00:47]} 32. Nd6 {[%emt 0:00:00]} Rf8 {[%emt 0:04:40]} 33. Rxb7 {[%emt 0:00:00]} Bxe5 {[%emt 0:00:20]} 34. Bxe5 {[%emt 0:00:00]} Qxe5 {[%emt 0:00:12]} 35. Rxd7 {[%emt 0:00:00]} Rxd6 {[%emt 0:00:09]} 36. Rxf7 {[%emt 0:00:00]} Rf6 {[%emt 0:00:06]} 37. Rxf8+ {[%emt 0:00:00]} Rxf8 {[%emt 0:00:14]} 38. Qe1 {[%emt 0:00:00]} Rxf1+ {[%emt 0:03:11]} 39. Kxf1 {[%emt 0:00:00]} Qb2 {[%emt 0:02:41]} 40. Qe6+ {[%emt 0:00:00]} Kg7 {[%emt 0:00:34]} 41. Qe7+ {[%emt 0:00:00]} Kg8 {[%emt 0:00:09]} 42. Qe8+ {[%emt 0:00:00]} Kg7 {[%emt 0:00:10]} 43. Qa4 {[%emt 0:00:00]} Qc1+ {[%emt 0:00:09]} 44. Ke2 {[%emt 0:00:00]} Qf4 {[%emt 0:00:28]} 45. Qd7+ {[%emt 0:00:00]} Kg8 {[%emt 0:00:09]} 46. Qc8+ {[%emt 0:00:00]} Kg7 {[%emt 0:00:16]} 47. Qb7+ {[%emt 0:00:00]} Kg8 {[%emt 0:00:11]} 48. Qe4 {[%emt 0:00:00]} Qc1 {[%emt 0:00:19]} 49. Qxg6+ {[%emt 0:00:00]} Kh8 {[%emt 0:00:05]} 50. d4 {[%emt 0:00:00]} Nf8 {[%emt 0:00:05]} 51. Qf5 {[%emt 0:00:00]} Kg8 {[%emt 0:00:19]} 52. d5 {[%emt 0:00:00]} Qxa3 {[%emt 0:00:22]} 53. d6 {[%emt 0:00:00]} Qa8 {[%emt 0:00:25]} 54. Be4 {[%emt 0:00:00]} Qa2+ {[%emt 0:00:07]} 55. Kf3 {[%emt 0:00:00]} Qxc4 {[%emt 0:00:35]} 56. Bd5+ {[%emt 0:13:30] Qa2 Be4 Qb3+ Kf4 Qc4 Kf3} 1-0

[Event "FIDE WCCC Open-12 2024"]
[Site "Montesilvano"]
[Date "2024.11.18"]
[Round "2.51"]
[White "Lenoks, Martin Jr."]
[Black "Liu, Richard Jingjie"]
[Result "0-1"]
[ECO "C50"]
[WhiteElo "1514"]
[BlackElo "1795"]
[PlyCount "34"]
[EventDate "2024.11.18"]
[EventType "swiss"]
[EventCountry "ITA"]
[TimeControl "5400+30"]

1. e4 {[%emt 0:00:01]} e5 {[%emt 0:00:04]} 2. Nf3 {[%emt 0:00:03]} Nc6 {[%emt 0:00:02]} 3. Bc4 {[%emt 0:00:23]} Bc5 {[%emt 0:00:05]} 4. Nc3 {[%emt 0:01:11]} d6 {[%emt 0:00:10]} 5. h3 {[%emt 0:00:59]} Be6 {[%emt 0:00:04]} 6. Bxe6 {[%emt 0:00:33]} fxe6 {[%emt 0:00:06]} 7. d3 {[%emt 0:00:19]} Nf6 {[%emt 0:00:04]} 8. Bg5 {[%emt 0:00:23]} O-O {[%emt 0:00:15]} 9. O-O {[%emt 1:31:08]} Ne7 {[%emt 0:00:10]} 10. d4 {[%emt 0:00:00]} exd4 {[%emt 0:04:32]} 11. Nxd4 {[%emt 0:00:00]} Bxd4 {[%emt 0:00:24]} 12. Qxd4 {[%emt 0:00:00]} Ng6 {[%emt 0:00:19]} 13. Qb4 {[%emt 0:00:00]} h6 {[%emt 0:01:51]} 14. Bxf6 {[%emt 0:00:00]} Qxf6 {[%emt 0:00:07]} 15. Qxb7 {[%emt 0:00:00]} Nf4 {[%emt 0:01:03]} 16. Qxc7 {[%emt 0:00:00]} Qg6 {[%emt 0:02:01]} 17. Kh2 {[%emt 0:00:00]} Qxg2# {[%emt 0:00:17]} 0-1

[Event "FIDE WCCC Open-12 2024"]
[Site "Montesilvano"]
[Date "2024.11.18"]
[Round "2.52"]
[White "Zhang, Sean"]
[Black "Sharku, Uvejs"]
[Result "1-0"]
[ECO "D02"]
[WhiteElo "1789"]
[BlackElo "1516"]
[PlyCount "41"]
[EventDate "2024.11.18"]
[EventType "swiss"]
[EventCountry "ITA"]
[TimeControl "5400+30"]

1. d4 {[%emt 0:00:03]} d5 {[%emt 0:00:14]} 2. Bf4 {[%emt 0:00:06]} Bf5 {[%emt 0:00:48]} 3. e3 {[%emt 0:01:28]} e6 {[%emt 0:01:04]} 4. Nf3 {[%emt 0:00:08]} c5 {[%emt 0:01:53]} 5. Bxb8 {[%emt 0:00:40]} Qxb8 {[%emt 0:12:23]} 6. Bb5+ {[%emt 0:00:38]} Kd8 {[%emt 0:01:43]} 7. c4 {[%emt 0:05:38]} Qd6 {[%emt 0:08:49]} 8. cxd5 {[%emt 0:02:12]} a6 {[%emt 0:11:35]} 9. Bd3 {[%emt 0:02:53]} Bxd3 {[%emt 0:00:58]} 10. Qxd3 {[%emt 0:00:09]} Qxd5 {[%emt 0:00:44]} 11. Nc3 {[%emt 0:00:26]} Qd6 {[%emt 0:06:04]} 12. Rd1 {[%emt 0:01:04]} Kc7 {[%emt 0:03:21]} 13. Ne4 {[%emt 0:02:27]} Qd5 {[%emt 0:03:44]} 14. O-O {[%emt 0:09:18]} Rd8 {[%emt 0:01:29]} 15. Qc2 {[%emt 0:00:39]} Qc6 {[%emt 0:05:42]} 16. Ne5 {[%emt 0:01:26]} Qe8 {[%emt 0:02:50]} 17. Nxc5 {[%emt 0:00:55]} Bxc5 {[%emt 0:01:02]} 18. Qxc5+ {[%emt 0:00:07]} Kb8 {[%emt 0:00:07]} 19. Rc1 {[%emt 0:00:32]} f6 {[%emt 0:01:35]} 20. Qc7+ {[%emt 0:00:17]} Ka8 {[%emt 0:00:13]} 21. Nf7 {[%emt 0:00:25]} 1-0

[Event "FIDE WCCC Open-12 2024"]
[Site "Montesilvano"]
[Date "2024.11.18"]
[Round "2.53"]
[White "Pham, Le Thao Nguyen"]
[Black "Mohd Firdaus, Firast Haiqal"]
[Result "1-0"]
[ECO "B01"]
[WhiteElo "2384"]
[BlackElo "1514"]
[PlyCount "45"]
[EventDate "2024.11.18"]
[EventType "swiss"]
[EventCountry "ITA"]
[TimeControl "5400+30"]

1. e4 {[%emt 0:00:02]} d5 {[%emt 0:00:12]} 2. exd5 {[%emt 0:00:08]} Qxd5 {[%emt 0:00:07]} 3. Nc3 {[%emt 0:00:08]} Qd8 {[%emt 0:00:19]} 4. d4 {[%emt 0:00:10]} Nf6 {[%emt 0:00:34]} 5. Bc4 {[%emt 0:00:13]} Bf5 {[%emt 0:00:56]} 6. Qf3 {[%emt 0:02:44]} Qc8 {[%emt 0:03:52]} 7. Bf4 {[%emt 0:12:02]} c6 {[%emt 0:05:17]} 8. Bb3 {[%emt 0:11:21]} e6 {[%emt 0:08:55]} 9. Nge2 {[%emt 0:02:38]} Bb4 {[%emt 0:09:54]} 10. O-O-O {[%emt 0:15:53]} Bg4 {[%emt 0:15:04]} 11. Qg3 {[%emt 0:06:15]} Bxc3 {[%emt 0:02:54]} 12. Nxc3 {[%emt 0:00:14]} Bxd1 {[%emt 0:01:16]} 13. Qxg7 {[%emt 0:00:16]} Rg8 {[%emt 0:01:36]} 14. Qxf6 {[%emt 0:00:10]} Bh5 {[%emt 0:01:12]} 15. Ne4 {[%emt 0:00:55]} Qd8 {[%emt 0:03:04]} 16. Qe5 {[%emt 0:00:06]} Nd7 {[%emt 0:09:55]} 17. Nd6+ {[%emt 0:01:26]} Ke7 {[%emt 0:00:25]} 18. Qxh5 {[%emt 0:00:09]} Rg7 {[%emt 0:01:12]} 19. Re1 {[%emt 0:01:14]} Nf6 {[%emt 0:00:44]} 20. Qe5 {[%emt 0:02:01]} Rg6 {[%emt 0:03:42]} 21. Bxe6 {[%emt 0:00:50]} Nd7 {[%emt 0:05:18]} 22. Nf5+ {[%emt 0:03:18]} Kf8 {[%emt 0:00:43]} 23. Qh8+ {[%emt 0:00:12]} 1-0

[Event "FIDE WCCC Open-12 2024"]
[Site "Montesilvano"]
[Date "2024.11.18"]
[Round "2.54"]
[White "Pennacchia, Domenico"]
[Black "Wang, Zihao(Sh)"]
[Result "0-1"]
[ECO "E14"]
[WhiteElo "1510"]
[BlackElo "1838"]
[PlyCount "76"]
[EventDate "2024.11.18"]
[EventType "swiss"]
[EventCountry "ITA"]
[TimeControl "5400+30"]

1. d4 {[%emt 0:00:16]} Nf6 {[%emt 0:00:04]} 2. Nf3 {[%emt 0:00:12]} e6 {[%emt 0:00:03]} 3. e3 {[%emt 0:00:27]} b6 {[%emt 0:00:05]} 4. c4 {[%emt 0:00:25]} Bb7 {[%emt 0:00:29]} 5. Be2 {[%emt 0:00:29]} Bb4+ {[%emt 0:00:46]} 6. Bd2 {[%emt 0:00:30]} a5 {[%emt 0:00:17]} 7. a3 {[%emt 0:00:29]} Be7 {[%emt 0:00:04]} 8. Nc3 {[%emt 0:00:17]} c5 {[%emt 0:00:18]} 9. O-O {[%emt 0:00:47]} O-O {[%emt 0:00:09]} 10. Qb3 {[%emt 0:02:10]} d6 {[%emt 0:00:33]} 11. Na4 {[%emt 0:02:14]} Nbd7 {[%emt 0:00:11]} 12. dxc5 {[%emt 0:00:48]} dxc5 {[%emt 0:00:31]} 13. Rfd1 {[%emt 0:00:53]} Qc7 {[%emt 0:00:17]} 14. Nc3 {[%emt 0:00:20]} Bc6 {[%emt 0:02:03]} 15. Nb5 {[%emt 1:27:43]} Qb7 {[%emt 0:04:16]} 16. Bc3 {[%emt 0:00:00]} Ne4 {[%emt 0:00:47]} 17. Ne5 {[%emt 0:00:00]} Nxc3 {[%emt 0:11:20]} 18. Nxc6 {[%emt 0:00:00]} Nxe2+ {[%emt 0:00:14]} 19. Kf1 {[%emt 0:00:00]} Qxc6 {[%emt 0:00:05]} 20. Kxe2 {[%emt 0:00:00]} Ne5 {[%emt 0:00:12]} 21. Qc3 {[%emt 0:00:00]} Bf6 {[%emt 0:00:15]} 22. Rd6 {[%emt 0:00:00]} Qxg2 {[%emt 0:00:06]} 23. Qd2 {[%emt 0:00:00]} Nxc4 {[%emt 0:00:07]} 24. Qd3 {[%emt 0:00:00]} Nxd6 {[%emt 0:00:08]} 25. Qxd6 {[%emt 0:00:00]} Rad8 {[%emt 0:00:02]} 26. Qxb6 {[%emt 0:00:00]} Qg4+ {[%emt 0:00:07]} 27. Ke1 {[%emt 0:00:00]} Qg1+ {[%emt 0:00:11]} 28. Ke2 {[%emt 0:00:00]} Qxa1 {[%emt 0:00:03]} 29. Nd6 {[%emt 0:00:00]} Rxd6 {[%emt 0:00:14]} 30. Qxd6 {[%emt 0:00:00]} Qxb2+ {[%emt 0:00:02]} 31. Kf3 {[%emt 0:00:00]} Rd8 {[%emt 0:00:07]} 32. Qxc5 {[%emt 0:00:00]} h6 {[%emt 0:00:05]} 33. Qxa5 {[%emt 0:00:00]} Rd2 {[%emt 0:00:06]} 34. Qa8+ {[%emt 0:00:00]} Kh7 {[%emt 0:00:04]} 35. Qe4+ {[%emt 0:00:00]} g6 {[%emt 0:00:02]} 36. Qc6 {[%emt 0:00:00]} Rxf2+ {[%emt 0:00:05]} 37. Kg3 {[%emt 0:00:00]} Be5+ {[%emt 0:00:04]} 38. Kg4 {[%emt 0:00:00]} Qe2+ {[%emt 0:00:13]} 0-1

[Event "FIDE WCCC Open-12 2024"]
[Site "Montesilvano"]
[Date "2024.11.18"]
[Round "2.55"]
[White "Mai, Duc Kien"]
[Black "Kim, Derek Minwoo"]
[Result "1-0"]
[ECO "C50"]
[WhiteElo "1771"]
[BlackElo "1699"]
[PlyCount "133"]
[EventDate "2024.11.18"]
[EventType "swiss"]
[EventCountry "ITA"]
[TimeControl "5400+30"]

1. e4 {[%emt 0:00:05]} e5 {[%emt 0:00:11]} 2. Nf3 {[%emt 0:00:10]} Nc6 {[%emt 0:00:07]} 3. Bc4 {[%emt 0:00:07]} Bc5 {[%emt 0:00:09]} 4. O-O {[%emt 0:00:05]} d6 {[%emt 0:00:31]} 5. c3 {[%emt 0:00:17]} Bg4 {[%emt 0:01:15]} 6. d3 {[%emt 0:00:59]} h6 {[%emt 0:06:13]} 7. a4 {[%emt 0:03:21]} a5 {[%emt 0:00:46]} 8. Be3 {[%emt 0:02:32]} Nf6 {[%emt 0:02:55]} 9. Qb3 {[%emt 0:03:30]} Qd7 {[%emt 0:01:04]} 10. Nbd2 {[%emt 0:01:29]} O-O {[%emt 0:02:33]} 11. Bxc5 {[%emt 0:06:06]} dxc5 {[%emt 0:00:16]} 12. Rad1 {[%emt 0:00:41]} Nh5 {[%emt 0:07:19]} 13. Bd5 {[%emt 0:02:47]} Nf4 {[%emt 0:00:33]} 14. Bxc6 {[%emt 0:12:48]} bxc6 {[%emt 0:01:29]} 15. Nxe5 {[%emt 0:05:38]} Bxd1 {[%emt 0:02:21]} 16. Rxd1 {[%emt 0:08:57]} Qd6 {[%emt 0:02:36]} 17. Ndc4 {[%emt 0:01:25]} Qe6 {[%emt 0:00:29]} 18. g3 {[%emt 0:04:09]} Nh3+ {[%emt 0:01:00]} 19. Kg2 {[%emt 0:00:31]} Rfb8 {[%emt 0:00:58]} 20. Qa2 {[%emt 0:06:00]} Kh7 {[%emt 0:02:14]} 21. f4 {[%emt 0:06:21]} f6 {[%emt 0:01:29]} 22. f5 {[%emt 0:00:08]} Qe8 {[%emt 0:00:13]} 23. Ng6 {[%emt 0:01:59]} Ng5 {[%emt 0:00:39]} 24. Qb1 {[%emt 0:00:46]} Rd8 {[%emt 0:01:42]} 25. Re1 {[%emt 0:02:46]} Qd7 {[%emt 0:02:22]} 26. Re3 {[%emt 0:00:53]} Nf7 {[%emt 0:01:31]} 27. Nf4 {[%emt 0:01:47]} Re8 {[%emt 0:04:40]} 28. Ne6 {[%emt 0:07:51]} Nd6 {[%emt 0:02:27]} 29. Nxc5 {[%emt 0:02:17]} Qc8 {[%emt 0:03:43]} 30. Nxd6 {[%emt 0:01:03]} cxd6 {[%emt 0:00:07]} 31. Ne6 {[%emt 0:00:02]} d5 {[%emt 0:02:20]} 32. d4 {[%emt 0:03:37]} Rb8 {[%emt 0:01:21]} 33. e5 {[%emt 0:01:10]} Qb7 {[%emt 0:00:57]} 34. Re2 {[%emt 0:00:09]} Qb3 {[%emt 0:01:37]} 35. exf6 {[%emt 0:03:02]} gxf6 {[%emt 0:00:29]} 36. Qd3 {[%emt 0:00:13]} Qa2 {[%emt 0:01:46]} 37. b4 {[%emt 0:02:33]} Qxa4 {[%emt 0:01:10]} 38. Qf3 {[%emt 0:00:05]} Qb5 {[%emt 0:07:19]} 39. Qh5 {[%emt 0:00:16]} Qb7 {[%emt 0:00:16]} 40. Qg6+ {[%emt 0:00:17]} Kh8 {[%emt 0:00:13]} 41. Qxf6+ {[%emt 0:01:19]} Kh7 {[%emt 0:00:39]} 42. Qg6+ {[%emt 0:00:32]} Kh8 {[%emt 0:00:08]} 43. Qxh6+ {[%emt 0:00:52]} Qh7 {[%emt 0:00:08]} 44. Qxh7+ {[%emt 0:01:12]} Kxh7 {[%emt 0:00:06]} 45. bxa5 {[%emt 0:00:04]} Kg8 {[%emt 0:01:54]} 46. Kf3 {[%emt 0:00:13]} Re7 {[%emt 0:00:31]} 47. Kf4 {[%emt 0:00:16]} Ra8 {[%emt 0:01:04]} 48. Ke5 {[%emt 0:00:13]} Rxa5 {[%emt 0:00:37]} 49. g4 {[%emt 0:00:12]} Ra8 {[%emt 0:00:57]} 50. g5 {[%emt 0:00:07]} Rd8 {[%emt 0:02:25]} 51. g6 {[%emt 0:00:19]} Rde8 {[%emt 0:00:31]} 52. Kd6 {[%emt 0:00:47]} Ra7 {[%emt 0:01:27]} 53. f6 {[%emt 0:01:32]} c5 {[%emt 0:00:36]} 54. f7+ {[%emt 0:00:14]} Rxf7 {[%emt 0:00:17]} 55. gxf7+ {[%emt 0:00:05]} Kxf7 {[%emt 0:00:05]} 56. Ng5+ {[%emt 0:00:05]} Kf8 {[%emt 0:00:27]} 57. Rxe8+ {[%emt 0:00:06]} Kxe8 {[%emt 0:00:09]} 58. dxc5 {[%emt 0:00:04]} d4 {[%emt 0:00:10]} 59. cxd4 {[%emt 0:00:04]} Kd8 {[%emt 0:00:05]} 60. c6 {[%emt 0:00:04]} Kc8 {[%emt 0:00:13]} 61. c7 {[%emt 0:00:05]} Kb7 {[%emt 0:37:11]} 62. Kd7 {[%emt 0:00:15]} Ka7 {[%emt 0:00:00]} 63. c8=Q {[%emt 0:00:08]} Kb6 {[%emt 0:00:00]} 64. Qc5+ {[%emt 0:00:04]} Kb7 {[%emt 0:00:00]} 65. Qb5+ {[%emt 0:00:05]} Ka8 {[%emt 0:00:00]} 66. Kc7 {[%emt 0:00:06]} Ka7 {[%emt 0:00:00]} 67. Qa5# {[%emt 0:00:04]} 1-0

[Event "FIDE WCCC Open-12 2024"]
[Site "Montesilvano"]
[Date "2024.11.18"]
[Round "2.56"]
[White "Sobirov, Feruzbek"]
[Black "Lee, Daniel Joshua"]
[Result "0-1"]
[ECO "D00"]
[WhiteElo "1487"]
[BlackElo "1765"]
[PlyCount "38"]
[EventDate "2024.11.18"]
[EventType "swiss"]
[EventCountry "ITA"]
[TimeControl "5400+30"]

1. d4 {[%emt 0:00:07]} d5 {[%emt 0:00:04]} 2. Nc3 {[%emt 0:00:32]} Nf6 {[%emt 0:00:07]} 3. Bf4 {[%emt 0:00:16]} e6 {[%emt 0:00:07]} 4. e3 {[%emt 0:00:35]} Bb4 {[%emt 0:00:07]} 5. Bd3 {[%emt 0:00:49]} c5 {[%emt 0:00:23]} 6. dxc5 {[%emt 0:03:09]} Nbd7 {[%emt 0:01:04]} 7. Nf3 {[%emt 0:01:30]} Nxc5 {[%emt 0:04:02]} 8. O-O {[%emt 1:27:32]} Nxd3 {[%emt 0:03:06]} 9. cxd3 {[%emt 0:00:00]} O-O {[%emt 0:00:55]} 10. Qb3 {[%emt 0:00:00]} Be7 {[%emt 0:09:39]} 11. Nb5 {[%emt 0:00:00]} Bd7 {[%emt 0:08:39]} 12. Nc7 {[%emt 0:00:00]} Rc8 {[%emt 0:04:27]} 13. Qxb7 {[%emt 0:00:00]} Nh5 {[%emt 0:03:52]} 14. Na6 {[%emt 0:00:00]} Nxf4 {[%emt 0:01:41]} 15. exf4 {[%emt 0:00:00]} Bc6 {[%emt 0:01:54]} 16. Qb3 {[%emt 0:00:00]} Qa5 {[%emt 0:01:03]} 17. Ne5 {[%emt 0:00:00]} Qxa6 {[%emt 0:01:03]} 18. Rac1 {[%emt 0:00:00]} Ba4 {[%emt 0:00:51]} 19. Rxc8 {[%emt 0:00:00]} Rxc8 {[%emt 0:00:51]} 0-1

[Event "FIDE WCCC Open-12 2024"]
[Site "Montesilvano"]
[Date "2024.11.18"]
[Round "2.58"]
[White "Mamarasulov, Husan"]
[Black "Ilcic, Aleksa"]
[Result "0-1"]
[ECO "E62"]
[WhiteElo "1407"]
[BlackElo "1757"]
[PlyCount "68"]
[EventDate "2024.11.18"]
[EventType "swiss"]
[EventCountry "ITA"]
[TimeControl "5400+30"]

1. d4 {[%emt 0:00:03]} Nf6 {[%emt 0:00:08]} 2. c4 {[%emt 0:00:30]} g6 {[%emt 0:00:09]} 3. g3 {[%emt 0:00:39]} Bg7 {[%emt 0:00:12]} 4. Bg2 {[%emt 0:00:59]} O-O {[%emt 0:00:20]} 5. Nf3 {[%emt 0:00:22]} d6 {[%emt 0:00:43]} 6. Nc3 {[%emt 0:02:09]} c6 {[%emt 0:00:57]} 7. O-O {[%emt 0:01:36]} Qa5 {[%emt 0:01:44]} 8. Re1 {[%emt 0:29:25]} e5 {[%emt 0:09:58]} 9. e4 {[%emt 0:02:21]} Bg4 {[%emt 0:06:50]} 10. Be3 {[%emt 0:06:00]} Nbd7 {[%emt 0:11:44]} 11. h3 {[%emt 0:02:05]} Bxf3 {[%emt 0:03:01]} 12. Bxf3 {[%emt 0:00:30]} Rfe8 {[%emt 0:05:18]} 13. d5 {[%emt 0:12:18]} cxd5 {[%emt 0:55:56]} 14. exd5 {[%emt 0:02:37]} Rac8 {[%emt 0:00:00]} 15. Nb5 {[%emt 0:10:06]} Bf8 {[%emt 0:00:00]} 16. b3 {[%emt 0:04:44]} a6 {[%emt 0:00:00]} 17. Bd2 {[%emt 0:00:20]} Qb6 {[%emt 0:00:00]} 18. Nc3 {[%emt 0:00:45]} Nc5 {[%emt 0:00:00]} 19. Qc2 {[%emt 0:03:59]} Bg7 {[%emt 0:00:00]} 20. Be3 {[%emt 0:02:37]} Nfd7 {[%emt 0:00:00]} 21. Rab1 {[%emt 0:01:23]} Qc7 {[%emt 0:00:00]} 22. b4 {[%emt 0:07:15]} e4 {[%emt 0:00:00]} 23. Be2 {[%emt 0:02:15]} Nd3 {[%emt 0:00:00]} 24. Bxd3 {[%emt 0:02:03]} exd3 {[%emt 0:00:00]} 25. Qxd3 {[%emt 0:00:07]} Ne5 {[%emt 0:00:00]} 26. Qd1 {[%emt 0:03:07]} Nxc4 {[%emt 0:00:00]} 27. Ne2 {[%emt 0:01:26]} Nxe3 {[%emt 0:00:37]} 28. fxe3 {[%emt 0:00:13]} Rxe3 {[%emt 0:00:27]} 29. Rc1 {[%emt 0:01:40]} Qd7 {[%emt 0:00:50]} 30. Qd2 {[%emt 0:00:23]} Rce8 {[%emt 0:00:24]} 31. Kg2 {[%emt 0:00:26]} Bh6 {[%emt 0:00:34]} 32. Nf4 {[%emt 0:00:57]} Bxf4 {[%emt 0:00:09]} 33. Rxe3 {[%emt 0:00:59]} Bxe3 {[%emt 0:00:07]} 34. Qc2 {[%emt 0:01:11]} Bxc1 {[%emt 0:07:22]} 0-1

[Event "FIDE WCCC Open-12 2024"]
[Site "Montesilvano"]
[Date "2024.11.18"]
[Round "2.65"]
[White "Isakov, Amin"]
[Black "Lin, Alex Y"]
[Result "1-0"]
[ECO "D30"]
[WhiteElo "1698"]
[BlackElo "1943"]
[PlyCount "41"]
[EventDate "2024.11.18"]
[EventType "swiss"]
[EventCountry "ITA"]
[TimeControl "5400+30"]

1. d4 {[%emt 0:00:10]} e6 {[%emt 0:00:02]} 2. c4 {[%emt 0:00:27]} d5 {[%emt 0:00:28]} 3. Nf3 {[%emt 0:00:13]} c6 {[%emt 0:00:16]} 4. Qc2 {[%emt 0:00:12]} Be7 {[%emt 0:00:12]} 5. e3 {[%emt 0:01:02]} Nf6 {[%emt 0:00:07]} 6. Bd3 {[%emt 0:00:09]} O-O {[%emt 0:00:15]} 7. Nbd2 {[%emt 0:00:35]} dxc4 {[%emt 0:00:27]} 8. Nxc4 {[%emt 0:00:08]} b5 {[%emt 0:00:14]} 9. Nce5 {[%emt 0:00:10]} Nbd7 {[%emt 0:00:21]} 10. Nxc6 {[%emt 0:00:27]} Qc7 {[%emt 0:00:27]} 11. Nxe7+ {[%emt 0:00:17]} Kh8 {[%emt 0:00:30]} 12. Qxc7 {[%emt 0:00:10]} Ne8 {[%emt 0:00:39]} 13. Qg3 {[%emt 0:00:38]} h6 {[%emt 0:01:28]} 14. Ne5 {[%emt 0:00:21]} Nxe5 {[%emt 0:00:33]} 15. dxe5 {[%emt 0:00:08]} Bd7 {[%emt 0:00:26]} 16. Ng6+ {[%emt 0:00:39]} fxg6 {[%emt 0:00:24]} 17. Qxg6 {[%emt 0:00:11]} Kg8 {[%emt 0:00:28]} 18. Bd2 {[%emt 0:00:30]} Nc7 {[%emt 0:00:40]} 19. Bb4 {[%emt 0:00:14]} Rfe8 {[%emt 0:00:30]} 20. Qh7+ {[%emt 0:00:20]} Kf7 {[%emt 0:00:12]} 21. Bg6# {[%emt 0:00:20]} 1-0